fUSD/lending_fUSD_20260201
["ID","MTS","AMOUNT","RATE_DAILY","PERIOD"]
[404235096,1769983843216,-500.0,0.00016215,2]
[404235097,1769983843226,-484.95031799,0.00016215,2]
[404235098,1769983843235,-500.0,0.00016215,2]
[404235099,1769983843248,-500.0,0.00016215,2]
[404235100,1769983843258,-500.0,0.00016215,2]
[404235101,1769983843268,-169.74769321,0.00016215,2]
[404235102,1769983843277,-284.47980203,0.00016215,2]
[404235103,1769983843287,-500.78479559,0.00016215,2]
[404235104,1769983843298,-309.32938346,0.00016215,2]
[404235106,1769983843308,-500.0,0.00016215,2]
[404235107,1769983843318,-162.14060441,0.00016215,2]
[404235108,1769983843327,-500.67654953,0.00016215,2]
[404235109,1769983843338,-509.42618613,0.00016215,2]
[404235110,1769983843347,-161.25264518,0.00016215,2]
[404235111,1769983843357,-500.0,0.00016215,2]
[404235112,1769983843366,-500.56292741,0.00016215,2]
[404235113,1769983843376,-500.0,0.00016215,2]
[404235114,1769983843386,-500.0,0.00016215,2]
[404235115,1769983843395,-208.86257805,0.00016215,2]
[404235116,1769983843405,-500.0,0.00016215,2]
[404235117,1769983843416,-392.58436043,0.00016215,2]
[404235118,1769983843427,-500.60514284,0.00016215,2]
[404235119,1769983843438,-500.44403009,0.00016215,2]
[404235120,1769983843448,-165.95473765,0.00016215,2]
[404235121,1769983843458,-164.79829562,0.00016215,2]
[404235122,1769983843468,-500.58361671,0.00016215,2]
[404235123,1769983843479,-500.0,0.00016215,2]
[404235124,1769983843490,-500.0,0.00016215,2]
[404235125,1769983843503,-500.0,0.00016215,2]
[404235126,1769983843513,-500.32022878,0.00016215,2]
[404235127,1769983843523,-162.70376611,0.00016215,2]
[404235128,1769983843533,-500.0,0.00016215,2]
[404235129,1769983843542,-157.58,0.00016229,2]
[404235130,1769983843552,-5730.49327829,0.00016233,2]
[404235131,1769983843562,-151.0,0.00016287,2]
[404235132,1769983843571,-151.0,0.00016305,2]
[404235133,1769983843581,-500.0,0.00016438,2]
[404235134,1769983843591,-500.0,0.00016438,2]
[404235135,1769983843601,-500.0,0.00016438,2]
[404235136,1769983843610,-500.0,0.00016438,2]
[404235138,1769983843619,-500.0,0.00016438,2]
[404235139,1769983843629,-639.68949456,0.00016438,2]
[404235140,1769983843639,-264.43161989,0.00016438,2]
[404235141,1769983843650,-1875.62,0.00016447,2]
[404235142,1769983843659,-394.18732143,0.0001646,2]
[404235143,1769983843669,-1000.0,0.00016474,2]
[404235144,1769983843678,-250.0,0.00016563,2]
[404235145,1769983843688,-5730.49327829,0.00016567,2]
[404235146,1769983843697,-167.31008018,0.00016668,2]
[404235147,1769983843706,-165.3967297,0.00016668,2]
[404235148,1769983843716,-743.53578902,0.00016721,2]
[404235149,1769983843726,-400.25248783,0.00016721,2]
[404235150,1769983843736,-225.18697532,0.00016738,2]
[404235151,1769983843749,-187.78006525,0.00016738,2]
[404235152,1769983843759,-1536.04360649,0.00016738,2]
[404235153,1769983843769,-351.96633732,0.00016738,2]
[404235154,1769983843779,-159.05940878,0.00016752,2]
[404235155,1769983843788,-500.0,0.00016754,2]
[404235156,1769983843797,-626.57032524,0.00016763,2]
[404235157,1769983843810,-500.91864191,0.00016763,2]
[404235158,1769983843820,-500.0,0.00016763,2]
[404235159,1769983843831,-500.77325853,0.00016763,2]
[404235160,1769983843842,-500.51837195,0.00016763,2]
[404235161,1769983843852,-395.64865199,0.00016763,2]
[404235162,1769983843861,-500.0,0.00016763,2]
[404235163,1769983843870,-500.82999627,0.00016763,2]
[404235164,1769983843881,-500.0,0.00016763,2]
[404235165,1769983843892,-500.9734639,0.00016763,2]
[404235166,1769983843902,-500.0,0.00016763,2]
[404235167,1769983843914,-500.69372146,0.00016763,2]
[404235169,1769983843924,-500.73429157,0.00016763,2]
[404235170,1769983843935,-500.0,0.00016763,2]
[404235171,1769983843944,-500.0,0.00016763,2]
[404235172,1769983843954,-500.0,0.00016763,2]
[404235173,1769983843963,-501.26182196,0.00016763,2]
[404235174,1769983843974,-500.82401357,0.00016763,2]
[404235175,1769983843983,-500.89443715,0.00016763,2]
[404235176,1769983843994,-500.0,0.00016763,2]
[404235177,1769983844008,-500.0,0.00016763,2]
[404235178,1769983844018,-500.0,0.00016763,2]
[404235179,1769983844028,-500.0,0.00016763,2]
[404235180,1769983844038,-500.54404873,0.00016763,2]
[404235181,1769983844047,-500.7971561,0.00016763,2]
[404235182,1769983844058,-500.8043205,0.00016763,2]
[404235183,1769983844069,-500.72482748,0.00016763,2]
[404235184,1769983844078,-257.05951855,0.00016763,2]
[404235185,1769983844087,-500.0,0.00016763,2]
[404235186,1769983844097,-549.87463531,0.00016763,2]
[404235187,1769983844107,-500.0,0.00016763,2]
[404235188,1769983844116,-10076.80540011,0.00016812,2]
[404235189,1769983844126,-259.1398829,0.00016872,2]
[404235190,1769983844136,-4515.25155763,0.00016872,2]
[404235191,1769983844146,-5936.69605047,0.00016886,2]
[404235192,1769983844155,-5730.49327829,0.000169,2]
[404235193,1769983844166,-498.8,0.00016911,2]
[404235194,1769983844175,-394.18732143,0.0001694,2]
[404235195,1769983844185,-334.5472959,0.00017011,2]
[404235196,1769983844195,-1000.0,0.00017091,2]
[404235198,1769983844204,-5268.0,0.00017149,2]
[404235199,1769983844214,-345.31324844,0.00017186,2]
[404235200,1769983844223,-5730.49327829,0.00017233,2]
[404235201,1769983844233,-587.0,0.00017236,2]
[404235202,1769983844245,-1000.0,0.0001726,2]
[404235203,1769983844257,-167.31008018,0.00017284,2]
[404235204,1769983844266,-165.3967297,0.00017284,2]
[404235205,1769983844277,-233.51889341,0.00017286,2]
[404235206,1769983844287,-194.72792766,0.00017286,2]
[404235207,1769983844296,-1592.87721993,0.00017286,2]
[404235208,1769983844306,-500.0,0.00017302,2]
[404235209,1769983844317,-2407.0,0.00017346,2]
[404235210,1769983844327,-2351.0,0.0001739,2]
[404235211,1769983844336,-394.18732143,0.0001742,2]
[404235212,1769983844346,-3252.0,0.00017429,2]
[404235213,1769983844355,-2445.0,0.00017429,2]
[404235214,1769983844364,-6577.0,0.00017429,2]
[404235215,1769983844373,-2407.0,0.0001749,2]
[404235216,1769983844383,-5268.0,0.00017508,2]
[404235217,1769983844393,-1000.0,0.00017534,2]
[404235218,1769983844403,-5730.49327829,0.00017567,2]
[404235219,1769983844414,-2407.0,0.00017571,2]
[404235220,1769983844423,-5268.0,0.00017636,2]
[404235221,1769983844432,-2119.92322163,0.0001764,2]
[404235222,1769983844442,-498.8,0.00017647,2]
[404235223,1769983844451,-150.0,0.0001768,2]
[404235224,1769983844460,-150.149,0.0001768,2]
[404235225,1769983844469,-3495.695,0.0001768,2]
[404235226,1769983844479,-1410.0,0.0001768,2]
[404235227,1769983844489,-726.399,0.0001768,2]
[404235228,1769983844507,-1334.0,0.0001768,2]
[404235229,1769983844516,-174.174,0.0001768,2]
[404235230,1769983844525,-1272.033,0.0001768,2]
[404235232,1769983844534,-1207.946,0.0001768,2]
[404235233,1769983844543,-926.314,0.0001768,2]
[404235234,1769983844552,-1898.85844425,0.00017684,2]
[404235235,1769983844562,-2314.0,0.000177,2]
[404235236,1769983844571,-5268.0,0.00017702,2]
[404235237,1769983844580,-1000.0,0.00017709,2]
[404235238,1769983844590,-10000.0,0.00017714,2]
[404235239,1769983844600,-2407.0,0.00017716,2]
[404235240,1769983844609,-25000.0,0.00017724,3]
[404235241,1769983844619,-2935.8,0.00017728,2]
[404235242,1769983844629,-25000.0,0.00017733,3]
[404235243,1769983844638,-599.850519,0.00017733,2]
[404235244,1769983844648,-25000.0,0.00017742,3]
[404235245,1769983844658,-25000.0,0.0001775,3]
[404235246,1769983844667,-25000.0,0.00017759,3]
[404235247,1769983844676,-25000.0,0.00017768,3]
[404235248,1769983844685,-5268.0,0.00017768,2]
[404235249,1769983844695,-25000.0,0.00017777,3]
[404235250,1769983844705,-25000.0,0.00017786,3]
[404235251,1769983844714,-773.08,0.00017788,2]
[404235252,1769983844724,-5268.0,0.00017789,2]
[404235253,1769983844733,-25000.0,0.00017794,3]
[404235254,1769983844742,-25000.0,0.00017803,3]
[404235255,1769983844758,-1000.0,0.00017808,2]
[404235256,1769983844768,-25000.0,0.00017812,3]
[404235257,1769983844777,-25000.0,0.00017821,3]
[404235259,1769983844786,-25000.0,0.0001783,3]
[404235260,1769983844795,-109605.83836455,0.0001783,2]
[404235261,1769983844805,-242.15909246,0.00017834,2]
[404235262,1769983844815,-201.93286099,0.00017834,2]
[404235263,1769983844828,-1651.81367706,0.00017834,2]
[404235264,1769983844838,-25000.0,0.00017838,3]
[404235265,1769983844848,-25000.0,0.00017847,3]
[404235266,1769983844858,-590.18945618,0.00017849,2]
[404235267,1769983844871,-500.0,0.0001785,2]
[404235268,1769983844880,-25000.0,0.00017856,3]
[404235269,1769983844889,-25000.0,0.00017865,3]
[404235270,1769983844901,-25000.0,0.00017874,3]
[404235271,1769983844911,-25000.0,0.00017882,3]
[404235272,1769983844920,-1053.86584713,0.00017891,2]
[404235273,1769983844930,-25000.0,0.00017891,3]
[404235274,1769983844939,-340.89084194,0.000179,2]
[404235275,1769983844949,-394.18732143,0.000179,2]
[404235276,1769983844959,-25000.0,0.000179,3]
[404235277,1769983844968,-5730.49327829,0.000179,2]
[404235279,1769983845176,-151.0,0.000179,2]
[404235280,1769983845186,-151.0,0.000179,2]
[404235281,1769983845196,-167.31008018,0.000179,2]
[404235282,1769983845205,-151.0,0.000179,2]
[404235283,1769983845215,-162.520743,0.000179,2]
[404235284,1769983845225,-162.520743,0.000179,2]
[404235285,1769983845235,-162.520743,0.000179,2]
[404235286,1769983845247,-162.520743,0.000179,2]
[404235287,1769983845256,-743.53578902,0.000179,3]
[404235288,1769983845265,-165.3967297,0.000179,2]
[404235289,1769983845275,-259.1398829,0.000179,2]
[404235290,1769983845284,-11307.6475519,0.000179,3]
[404235291,1769983845294,-5936.69605047,0.000179,2]
[404235292,1769983845304,-6188.57219671,0.00017957,2]
[404235293,1769983845313,-12904.4462335,0.00017957,2]
[404235294,1769983845322,-6744.6948671,0.00017957,2]
[404235295,1769983845332,-441966.6668604,0.00017957,2]
[404235296,1769983845342,-1390.2574228,0.00017957,2]
[404235297,1769983845351,-23420.6393084,0.00017957,2]
[404235298,1769983845361,-151.0,0.00017957,2]
[404235299,1769983845370,-151.0,0.00017957,2]
[404235300,1769983845379,-151.0,0.00017957,2]
[404235301,1769983845388,-151.0,0.00017957,2]
[404235302,1769983845398,-151.0,0.00017957,2]
[404235303,1769983845408,-151.0,0.00017957,2]
[404235304,1769983845418,-151.0,0.00017957,2]
[404235305,1769983845427,-170.231382,0.00017957,2]
[404235306,1769983845437,-151.0,0.00017957,2]
[404235307,1769983845446,-151.0,0.00017957,2]
[404235308,1769983845456,-155.275566,0.00017957,2]
[404235309,1769983845465,-155.275566,0.00017957,2]
[404235310,1769983845474,-155.275566,0.00017957,2]
[404235311,1769983845484,-155.275566,0.00017957,2]
[404235312,1769983845496,-151.0,0.00017957,2]
[404235313,1769983845505,-868.76,0.00017969,2]
[404235314,1769983845515,-17033.4027205,0.00017969,2]
[404235315,1769983845524,-952.856603,0.00017969,2]
[404235316,1769983845533,-150.0,0.00017999,2]
[404235318,1769983845543,-150.0,0.00017999,2]
[404235319,1769983845553,-150.0,0.00017999,2]
[404235320,1769983845563,-150.0,0.00017999,2]
[404235321,1769983845573,-195.53835104,0.00017999,2]
[404235322,1769983845583,-298.78283938,0.00017999,2]
[404235323,1769983845592,-155.0,0.00017999,2]
[404235324,1769983845601,-341.12463605,0.00017999,2]
[404235325,1769983845611,-2008.34441638,0.00017999,2]
[404235327,1769983845620,-300.0,0.00017999,2]
[404235329,1769983845630,-568.58467958,0.00017999,2]
[404235331,1769983845639,-1000.68755277,0.00018,2]
[404235333,1769983845648,-309909.48983937,0.00018,2]
[404235336,1769983845802,-854.0836,0.00018,2]
[404235337,1769983845813,-326.33536277,0.00018,2]
[404235338,1769983845825,-4619.849466,0.00018,2]
[404235339,1769983845877,-27708.10213746,0.00018,2]
[404235340,1769983845889,-5162.82916256,0.00018,2]
[404235341,1769983845905,-771.62879852,0.00018,2]
[404235342,1769983846027,-276.871998,0.00018,2]
[404235343,1769983846042,-506.37642362,0.00018,2]
[404235344,1769983846287,-1146.795,0.00015847,2]
[404235345,1769983846302,-4197.18904291,0.00015847,2]
[404235346,1769983846313,-410.39994,0.00015847,2]
[404235347,1769983846324,-345.0,0.00015847,2]
[404235348,1769983846334,-332.8977374,0.00015847,2]
[404235350,1769983846364,-1149.0,0.00015847,2]
[404235352,1769983846375,-3653.91761244,0.00015847,2]
[404235354,1769983846384,-162.37656471,0.00016361,2]
[404235356,1769983846393,-400.25248783,0.000179,2]
[404235358,1769983846403,-1676.18445236,0.000179,2]
[404235360,1769983846413,-2210.25629834,0.000179,2]
[404235362,1769983846428,-628.81080693,0.000179,2]
[404235363,1769983846438,-216.18919307,0.00018,2]
[404235444,1769984959107,-1140.09576197,0.00013434,2]
[404235464,1769985031840,-595.87423803,0.00013434,2]
[404235466,1769985031850,-208.12576197,0.00013919,2]
[404235469,1769985031863,-162.47423803,0.00013919,2]
[404235471,1769985031880,-137.52576197,0.00014225,2]
[404235475,1769985031955,-162.47423803,0.00014225,2]
[404235476,1769985031968,-172.45531507,0.00014225,2]
[404235572,1769985040007,-367.51473312,0.00014225,2]
[404235573,1769985040021,-623.17559974,0.00014225,2]
[404235574,1769985040035,-36.85435207,0.00014225,2]
[404235575,1769985040044,-23261.496523,0.00014226,2]
[404235576,1769985040056,-697.97126747,0.00014226,2]
[404235577,1769985040084,-3338.78006525,0.00014226,2]
[404235578,1769985040096,-2793.87584917,0.00014226,2]
[404235579,1769985040106,-150.0,0.00014372,2]
[404235580,1769985040116,-501.60267843,0.00014373,2]
[404235581,1769985040127,-500.14405722,0.00014373,2]
[404235582,1769985040136,-500.0,0.00014373,2]
[404235583,1769985040147,-500.0,0.00014373,2]
[404235584,1769985040161,-500.0,0.00014373,2]
[404235585,1769985040172,-500.0,0.00014373,2]
[404235586,1769985040183,-500.0,0.00014373,2]
[404235587,1769985040195,-500.0,0.00014373,2]
[404235588,1769985040209,-500.0,0.00014373,2]
[404235589,1769985040220,-500.0,0.00014373,2]
[404235590,1769985040231,-500.0,0.00014373,2]
[404235591,1769985040240,-500.0,0.00014373,2]
[404235592,1769985040251,-206.4568071,0.00014373,2]
[404235593,1769985040261,-500.0,0.00014373,2]
[404235594,1769985040270,-421.78920043,0.00014373,2]
[404235595,1769985040282,-500.0,0.00014373,2]
[404235596,1769985040292,-500.0,0.00014373,2]
[404235597,1769985040301,-500.0,0.00014373,2]
[404235598,1769985040310,-500.0,0.00014373,2]
[404235599,1769985040319,-500.0,0.00014373,2]
[404235600,1769985040330,-500.0,0.00014373,2]
[404235601,1769985040339,-183.266,0.00014504,2]
[404235602,1769985040349,-1405.519,0.00014504,2]
[404235603,1769985040358,-994.0923,0.00014519,2]
[404235604,1769985040368,-6360.81704406,0.00014519,2]
[404235605,1769985040378,-162.37656471,0.00014519,2]
[404235606,1769985040388,-3275.15127056,0.00014519,2]
[404235607,1769985040404,-7548.22280999,0.00014519,2]
[404235608,1769985040413,-500.0,0.0001461,2]
[404235609,1769985040422,-151.0,0.0001461,2]
[404235610,1769985040431,-500.0,0.0001461,2]
[404235611,1769985040440,-500.0,0.0001461,2]
[404235612,1769985040449,-151.0,0.0001461,2]
[404235613,1769985040459,-500.0,0.0001461,2]
[404235614,1769985040470,-151.0,0.0001461,2]
[404235615,1769985040479,-500.0,0.0001461,2]
[404235616,1769985040489,-151.0,0.0001461,2]
[404235617,1769985040498,-500.0,0.0001461,2]
[404235618,1769985040507,-500.0,0.0001461,2]
[404235619,1769985040516,-151.0,0.0001461,2]
[404235620,1769985040525,-500.0,0.0001461,2]
[404235621,1769985040535,-151.0,0.0001461,2]
[404235622,1769985040544,-500.0,0.0001461,2]
[404235623,1769985040553,-151.0,0.0001461,2]
[404235624,1769985040562,-500.0,0.0001461,2]
[404235625,1769985040571,-151.0,0.0001461,2]
[404235626,1769985040580,-500.0,0.0001461,2]
[404235627,1769985040589,-151.0,0.0001461,2]
[404235628,1769985040601,-500.0,0.0001461,2]
[404235629,1769985040610,-151.0,0.0001461,2]
[404235630,1769985040619,-500.0,0.0001461,2]
[404235631,1769985040629,-151.0,0.0001461,2]
[404235632,1769985040638,-151.0,0.0001461,2]
[404235633,1769985040648,-465.78763801,0.0001461,2]
[404235634,1769985040657,-151.0,0.0001461,2]
[404235635,1769985040666,-151.0,0.0001461,2]
[404235636,1769985040675,-151.0,0.0001461,2]
[404235637,1769985040685,-151.0,0.0001461,2]
[404235638,1769985040919,-151.0,0.0001461,2]
[404235639,1769985040929,-151.0,0.0001461,2]
[404235640,1769985040939,-151.0,0.0001461,2]
[404235641,1769985040949,-151.0,0.0001461,2]
[404235642,1769985040959,-151.0,0.0001461,2]
[404235643,1769985040968,-151.0,0.0001461,2]
[404235644,1769985040978,-151.0,0.0001461,2]
[404235645,1769985040988,-151.0,0.0001461,2]
[404235646,1769985040998,-153.98079146,0.0001461,2]
[404235647,1769985041007,-500.0,0.0001461,2]
[404235648,1769985041015,-500.0,0.0001461,2]
[404235649,1769985041024,-500.0,0.0001461,2]
[404235650,1769985041033,-500.0,0.0001461,2]
[404235651,1769985041042,-500.0,0.0001461,2]
[404235652,1769985041051,-500.0,0.0001461,2]
[404235653,1769985041061,-500.0,0.0001461,2]
[404235654,1769985041070,-500.0,0.0001461,2]
[404235655,1769985041079,-500.0,0.0001461,2]
[404235656,1769985041088,-500.0,0.0001461,2]
[404235657,1769985041097,-500.0,0.0001461,2]
[404235658,1769985041107,-200.0,0.0001461,2]
[404235659,1769985041116,-200.0,0.0001461,2]
[404235660,1769985041125,-500.0,0.00014618,2]
[404235661,1769985041134,-305.9002671,0.00014618,2]
[404235662,1769985041144,-500.0,0.00014618,2]
[404235663,1769985041156,-500.0,0.00014618,2]
[404235664,1769985041165,-500.0,0.00014618,2]
[404235665,1769985041175,-500.0,0.00014618,2]
[404235666,1769985041183,-500.0,0.00014618,2]
[404235667,1769985041194,-500.0,0.00014618,2]
[404235668,1769985041203,-500.0,0.00014618,2]
[404235669,1769985041212,-500.0,0.00014618,2]
[404235670,1769985041221,-500.0,0.00014618,2]
[404235671,1769985041230,-635.55805955,0.00014618,2]
[404235672,1769985041239,-500.0,0.00014618,2]
[404235673,1769985041248,-500.0,0.00014618,2]
[404235674,1769985041257,-500.0,0.00014618,2]
[404235675,1769985041266,-500.0,0.00014618,2]
[404235676,1769985041275,-500.0,0.00014618,2]
[404235677,1769985041284,-500.0,0.00014618,2]
[404235678,1769985041293,-500.0,0.00014618,2]
[404235679,1769985041302,-500.0,0.00014618,2]
[404235680,1769985041311,-500.0,0.00014618,2]
[404235681,1769985041320,-500.0,0.00014618,2]
[404235682,1769985041330,-500.0,0.00014618,2]
[404235683,1769985041340,-220.02253597,0.00014618,2]
[404235684,1769985041349,-500.0,0.00014618,2]
[404235685,1769985041358,-500.0,0.00014618,2]
[404235686,1769985041367,-568.58467958,0.00014618,2]
[404235687,1769985041376,-2900000.0,0.00014619,2]
[404235688,1769985041385,-167.31008018,0.00014619,2]
[404235689,1769985041395,-410.41930381,0.00014719,2]
[404235690,1769985041404,-394.18732145,0.00014719,2]
[404235691,1769985041413,-300.0,0.00014778,2]
[404235692,1769985041422,-2500.0,0.00014778,2]
[404235693,1769985041432,-250.0,0.00014778,2]
[404235694,1769985041441,-172.3463,0.00014819,2]
[404235695,1769985041450,-1000.0,0.00014819,2]
[404235696,1769985041459,-266.8349919,0.00014821,2]
[404235697,1769985041469,-10823.37408052,0.00014887,2]
[404235698,1769985041479,-6360.817044,0.00014895,2]
[404235699,1769985041488,-861.09597745,0.00014921,2]
[404235700,1769985041500,-500.0,0.00014921,2]
[404235701,1769985041509,-500.0,0.00014921,2]
[404235702,1769985041518,-500.0,0.00014921,2]
[404235703,1769985041528,-500.0,0.00014921,2]
[404235704,1769985041538,-735.94,0.00014921,2]
[404235705,1769985041548,-150.0,0.00014949,2]
[404235706,1769985041557,-1006.76989175,0.00014977,2]
[404235707,1769985041566,-209.46,0.00014984,2]
[404235708,1769985041576,-250.0,0.00015,2]
[404235709,1769985041586,-500.0,0.00015123,2]
[404235710,1769985041596,-500.0,0.00015158,2]
[404235711,1769985041606,-200.0,0.00015158,2]
[404235712,1769985041616,-200.0,0.00015158,2]
[404235713,1769985041625,-152.0,0.00015214,2]
[404235714,1769985041635,-394.18732143,0.00015249,2]
[404235715,1769985041644,-10823.37408052,0.00015256,2]
[404235716,1769985041654,-157.58,0.00015268,2]
[404235717,1769985041665,-314.93,0.00015268,2]
[404235718,1769985041676,-6360.817044,0.0001527,2]
[404235719,1769985041686,-151.0,0.00015369,2]
[404235720,1769985041697,-151.0,0.00015369,2]
[404235721,1769985041708,-167.31008018,0.00015439,2]
[404235722,1769985041719,-255.0,0.00015493,2]
[404235723,1769985041728,-410.4193038,0.00015514,2]
[404235724,1769985041738,-420.0,0.0001558,2]
[404235725,1769985041749,-10823.37408052,0.00015624,2]
[404235726,1769985041759,-6360.817044,0.00015646,2]
[404235727,1769985041771,-1680.0,0.00015647,2]
[404235728,1769985041781,-500.0,0.00015706,2]
[404235729,1769985041791,-394.18732143,0.00015779,2]
[404235730,1769985041800,-184.44067477,0.00015895,2]
[404235731,1769985041812,-1251.80770273,0.00015895,2]
[404235732,1769985041822,-378.38431742,0.00015895,2]
[404235733,1769985041831,-3254.62917349,0.00015895,2]
[404235734,1769985041842,-10823.37408052,0.00015993,2]
[404235735,1769985041852,-6360.817044,0.00016022,2]
[404235736,1769985041862,-743.53578904,0.00016115,2]
[404235737,1769985041872,-3010.16770509,0.00016115,2]
[404235738,1769985041881,-1388.24489453,0.00016206,2]
[404235739,1769985041891,-3663.60024086,0.00016206,2]
[404235740,1769985041901,-613.82743494,0.00016215,2]
[404235741,1769985041911,-276.18766446,0.00016215,2]
[404235742,1769985041922,-500.45016231,0.00016215,2]
[404235743,1769985041934,-463.54060625,0.00016215,2]
[404235744,1769985041943,-500.0,0.00016215,2]
[404235745,1769985041953,-172.44250909,0.00016215,2]
[404235746,1769985041963,-500.0,0.00016215,2]
[404235747,1769985041972,-175.77488165,0.00016215,2]
[404235748,1769985041981,-500.13624415,0.00016215,2]
[404235749,1769985041991,-500.56292741,0.00016215,2]
[404235750,1769985042001,-500.0,0.00016215,2]
[404235751,1769985042011,-500.0,0.00016215,2]
[404235752,1769985042022,-500.0,0.00016215,2]
[404235753,1769985042031,-500.0,0.00016215,2]
[404235754,1769985042040,-500.8695205,0.00016215,2]
[404235755,1769985042052,-208.40720819,0.00016215,2]
[404235756,1769985042063,-500.0,0.00016215,2]
[404235757,1769985042072,-500.0,0.00016215,2]
[404235758,1769985042083,-500.44195081,0.00016215,2]
[404235759,1769985042094,-161.52754955,0.00016215,2]
[404235760,1769985042104,-161.96888035,0.00016215,2]
[404235761,1769985042115,-160.18403092,0.00016215,2]
[404235762,1769985042124,-500.0,0.00016215,2]
[404235763,1769985042135,-500.0,0.00016215,2]
[404235764,1769985042147,-500.0,0.00016215,2]
[404235765,1769985042158,-500.0,0.00016215,2]
[404235766,1769985042167,-210.3644324,0.00016215,2]
[404235767,1769985042177,-160.19860466,0.00016215,2]
[404235768,1769985042188,-160.07078646,0.00016215,2]
[404235769,1769985042198,-500.40958663,0.00016215,2]
[404235770,1769985042209,-500.0,0.00016215,2]
[404235771,1769985042221,-500.0,0.00016215,2]
[404235772,1769985042230,-500.0,0.00016215,2]
[404235773,1769985042239,-500.0,0.00016215,2]
[404235774,1769985042249,-500.0,0.00016215,2]
[404235775,1769985042258,-500.52349132,0.00016215,2]
[404235776,1769985042268,-500.28379137,0.00016215,2]
[404235777,1769985042279,-500.0,0.00016215,2]
[404235778,1769985042289,-500.0,0.00016215,2]
[404235779,1769985042299,-597.93092721,0.00016215,2]
[404235780,1769985042309,-500.0,0.00016215,2]
[404235781,1769985042318,-500.76188298,0.00016215,2]
[404235782,1769985042327,-333.63674101,0.00016215,2]
[404235783,1769985042337,-432.17920076,0.00016215,2]
[404235784,1769985042346,-500.0,0.00016215,2]
[404235785,1769985042356,-182.39675522,0.00016215,2]
[404235786,1769985042365,-500.0,0.00016215,2]
[404235787,1769985042374,-500.60514284,0.00016215,2]
[404235788,1769985042383,-500.32022878,0.00016215,2]
[404235789,1769985042392,-512.45868971,0.00016215,2]
[404235790,1769985042401,-471.58451912,0.00016215,2]
[404235791,1769985042411,-500.23746588,0.00016215,2]
[404235792,1769985042420,-500.0,0.00016215,2]
[404235793,1769985042430,-484.95031799,0.00016215,2]
[404235794,1769985042439,-500.0,0.00016215,2]
[404235795,1769985042449,-500.0,0.00016215,2]
[404235796,1769985042459,-169.74769321,0.00016215,2]
[404235797,1769985042468,-309.32938346,0.00016215,2]
[404235798,1769985042478,-284.47980203,0.00016215,2]
[404235799,1769985042487,-162.14060441,0.00016215,2]
[404235800,1769985042496,-509.42618613,0.00016215,2]
[404235801,1769985042506,-161.25264518,0.00016215,2]
[404235802,1769985042515,-500.67654953,0.00016215,2]
[404235803,1769985042525,-160.17285395,0.00016215,2]
[404235804,1769985042536,-500.36134052,0.00016215,2]
[404235805,1769985042545,-500.0,0.00016215,2]
[404235806,1769985042555,-500.0,0.00016215,2]
[404235807,1769985042564,-500.44403009,0.00016215,2]
[404235808,1769985042574,-500.78479559,0.00016215,2]
[404235809,1769985042583,-500.0,0.00016215,2]
[404235810,1769985042594,-208.86257805,0.00016215,2]
[404235811,1769985042605,-164.79829562,0.00016215,2]
[404235812,1769985042616,-500.58361671,0.00016215,2]
[404235813,1769985042626,-392.58436043,0.00016215,2]
[404235814,1769985042636,-500.0,0.00016215,2]
[404235815,1769985042646,-500.0,0.00016215,2]
[404235816,1769985042655,-162.70376611,0.00016215,2]
[404235817,1769985042666,-165.95473765,0.00016215,2]